Workbook

Sheet калькуляция блюда
A1: КАЛЬКУЛЯЦИЯ БЛЮД
A2: наименование | B2: цена | C2: Горбуша тушенная с овощами | D2: хлеб в/с | E2: хлеб дарницкий | F2: чай с сахаром | G2: салат из моркови с сахаром | H2: котлеты рубленные из говядины | I2: гуляш из говядины | J2: каша гречневая рассыпчатая | K2: чай с лимоном | L2: кофейный напиток | M2: банан | N2: гуляш из птицы | O2: груша | P2: рис отварной | Q2: макароны отварные | R2: котлеты рубленные из птицы | S2: картофельное пюре | T2: какао с молоком | U2: плов из птицы | V2: салат из свеклы отварной | W2: пельмени отварные | X2: салат из свежей капусты | Y2: жаркое из птицы | Z2: каша молочная манная | AA2: булочка | AB2: тефтели мясные с рисом | AC2: сок фруктово-ягодный | AD2: яблоко | AE2: апельсины | AF2: сыр | AG2: огурец
A3: лимон | B3: 70 | K3: 0.008
A4: грудка | B4: 319.89 | N4: 0.107 | R4: 0.09 | U4: 0.09 | Y4: 0.096
A5: какао | B5: 177.04 | T5: 0.004
A6: капуста | B6: 12 | X6: 0.068
A7: картофель | B7: 16.76 | S7: 0.171 | Y7: 0.106
A8: кофейный напиток | B8: 151 | L8: 0.005
A9: банан | M9: 0.15
A10: гречка | B10: 104.01 | J10: 0.035
A11: манка | B11: 49.87 | Z11: 0.03
A12: груша | B12: 80 | O12: 0.12
A13: макароны | B13: 41.8 | Q13: 0.05
A14: лук | B14: 20 | C14: 0.014 | H14: 0.01 | I14: 0.018 | N14: 0.018 | U14: 0.011 | Y14: 0.012 | AB14: 0.013
A15: горбуша или треска | B15: 227.22 | C15: 0.123
A16: масло раст | B16: 92.37 | C16: 0.007 | H16: 0.003 | I16: 0.005 | N16: 0.005 | U16: 0.005 | V16: 0.002 | X16: 0.003 | Y16: 0.004 | AB16: 0.002
A17: масло сливочное | B17: 558.97 | J17: 0.005 | P17: 0.005 | Q17: 0.005 | R17: 0.003 | S17: 0.005 | W17: 0.005 | Z17: 0.005
A18: морковь | B18: 17 | C18: 0.032 | G18: 0.073 | U18: 0.016 | X18: 0.013
A19: мука | B19: 37.5 | I19: 0.004 | N19: 0.004
A20: мясо | B20: 378.05 | H20: 0.1 | I20: 0.107 | AB20: 0.052
A21: пельмени | B21: 260 | W21: 0.16
A22: рис | B22: 78.8 | P22: 0.054 | U22: 0.057 | AB22: 0.005
A23: сахар | B23: 67.6 | F23: 0.015 | G23: 0.001 | K23: 0.015 | L23: 0.02 | T23: 0.02 | X23: 0.002 | Z23: 0.003
A24: рыба минтай | B24: 128.84
A25: свекла | B25: 16 | V25: 0.073
A26: молоко | B26: 60.98 | H26: 0.024 | L26: 0.1 | R26: 0.018 | S26: 0.023 | T26: 0.1 | Z26: 0.1
A27: булочка (50гр) | B27: 8.92 | AA27: 1
A28: соль | B28: 15.5 | C28: 0.001 | H28: 0.001 | I28: 0.002 | J28: 0.001 | N28: 0.001 | P28: 0.001 | Q28: 0.001 | R28: 0.001 | S28: 0.001 | U28: 0.001 | W28: 0.001 | X28: 0.001 | Y28: 0.001 | Z28: 0.001 | AB28: 0.001
A29: яблоки свежие | B29: 69.15 | AD29: 0.15
A30: сыр | B30: 580.79 | AF30: 0.0209
A31: хлеб дарницкий(кг) | B31: 55.12 | E31: 0.025
A32: томат паста | B32: 111.9 | I32: 0.012 | N32: 0.012 | U32: 0.005
A33: сок(1 литр) | B33: 64.9 | AC33: 0.2
A34: хлеб в/с(кг) | B34: 67.01 | D34: 0.05
A35: чай | B35: 463.95 | F35: 0.001 | K35: 0.002
A36: апельсины | B36: 70 | AE36: 0.15
A37: помидор | B37: 0
A38: огурец | B38: 0 | AG38: 0.063
A39: стоимость блюда | C39: =B14*C14+B15*C15+B16*C16+B18*C18+B28*C28 -> 29.43 | D39: =D34*B34 -> 3.35 | E39: =B31*E31 -> 1.38 | F39: =F23*B23+F35*B35 -> 1.48 | G39: =G18*B18+G23*B23 -> 1.31 | H39: =B14*H14+B16*H16+B20*H20+B26*H26+B28*H28 -> 39.76 | I39: =I14*B14+I16*B16+I18*B18+I19*B19+I20*B20+I28*B28+I32*B32 -> 42.80 | J39: =J10*B10+J17*B17+J28*B28 -> 6.45 | K39: =B3*K3+B23*K23+B35*K35 -> 2.50 | L39: =B8*L8+B23*L23+B26*L26 -> 8.21 | M39: =B9*M9 -> 0.00 | N39: =B4*N4+B14*N14+B16*N16+B19*N19+B28*N28+B32*N32 -> 36.56 | O39: =B12*O12 -> 9.60 | P39: =P17*B17+P22*B22+P28*B28 -> 7.07 | Q39: =Q13*B13+Q17*B17+Q28*B28 -> 4.90 | R39: =R4*B4+R17*B17+R26*B26+R28*B28 -> 31.58 | S39: =S7*B7+S17*B17+S26*B26+S28*B28 -> 7.08 | T39: =T23*B23+T26*B26+T5*B5 -> 8.16 | U39: =U4*B4+U14*B14+U16*B16+U18*B18+U22*B22+U32*B32+U28*B28 -> 34.81 | V39: =V16*B16+V25*B25 -> 1.35 | W39: =W17*B17+W21*B21+W28*B28 -> 44.41 | X39: =X6*B6+X16*B16+X23*B23+X28*B28 -> 1.24 | Y39: =Y4*B4+Y7*B7+Y14*B14+Y16*B16*Y28*B28 -> 32.73 | Z39: =Z11*B11+Z17*B17+Z23*B23+Z26*B26+Z28*B28 -> 10.61 | AA39: =AA27*B27 -> 8.92 | AB39: =AB14*B14+AB16*B16+AB20*B20+AB22*B22+AB28*B28 -> 20.51 | AC39: =AC33*B33 -> 12.98 | AD39: =AD29*B29 -> 10.37 | AE39: =AE36*B36 -> 10.5 | AF39: =B30*AF30 -> 12.14 | AG39: =B38*AG38 -> 0

Sheet меню
I1: Утверждаю
H2: Руководитель отдела образования
H3: Сармановского МР РТ
H4: ______________Идрисова Г.Я.
A5: ПРИМЕРНОЕ 12 ДНЕВНОЕ МЕНЮ (горячий завтрак) ДЛЯ обучающихся 1-4 класов школ Сармановского муниципального района
A6: на 1 полугодие 2022-2023 учебного года
B7: Наименование блюда | D7: Выход блюда (гр) | E7: Пищевые вещества(г) | H7: Энергетическая ценность (ккал) | I7: Минеральные вещества (мг) | K7: Витамин(мг) | L7: № тех. карты
C8: Примерная стоимость блюда (руб) | E8: Б | F8: Ж | G8: У | I8: Са | J8: Р | K8: С
A10: 1 неделя - понедельник
A11: горячий завтрак | B11: Салат из моркови с сахаром | C11: 1.31 | D11: 60 | E11: 1.08 | F11: 0.18 | G11: 8.62 | H11: 40.4 | I11: 24.28 | J11: 44 | K11: 6.25 | L11: ТТК 38
B12: Котлеты рубленные из говядины | C12: 39.76 | D12: 100 | E12: 16.5 | F12: 24.2 | G12: 14.32 | H12: 344 | I12: 32.36 | J12: 41.84 | K12: 0.26 | L12: ТТК 268
B13: Каша гречневая рассыпчатая с маслом | C13: 6.45 | D13: 150 | E13: 8.6 | F13: 6.09 | G13: 38.64 | H13: 243.75 | I13: 14.82 | J13: 220.3 | K13: 0 | L13: ТТК 302
B14: Чай с лимоном | C14: 2.5 | D14: 200 | E14: 0.13 | F14: 0.02 | G14: 15.2 | H14: 62 | I14: 14.2 | J14: 22 | K14: 2.83 | L14: ТТК 377
B15: Хлеб пшеничный в/с | C15: 3.35 | D15: 50 | E15: 2.72 | F15: 0.49 | G15: 0.49 | H15: 74.6 | I15: 14.43 | J15: 19.5 | K15: 0 | L15: ТТК 61
B16: Хлеб дарницкий | C16: 1.38 | D16: 25 | E16: 2.72 | F16: 0.49 | G16: 0.49 | H16: 74.6 | I16: 14.43 | J16: 19.5 | K16: 0 | L16: ТТК 61
B17: Фрукты (яблоко свежее) | C17: 10.37 | D17: 150 | E17: 0.6 | F17: 0.6 | G17: 14.7 | H17: 70.3 | I17: 24 | J17: 13.5 | K17: 15 | L17: ТТК 338
B19: ИТОГО | C19: =SUM(C11:C18) -> 65.12 | E19: =SUM(E11:E17) -> 32.35 | F19: 32.07 | G19: 92.46 | H19: 909.65 | I19: 138.52 | J19: 380.64 | K19: 24.34
A20: 1 неделя - вторник
A21: горячий завтрак | B21: Жаркое из птицы | C21: 32.73 | D21: 50/100 | E21: 17.21 | F21: 4.67 | G21: 13.72 | H21: 165.63 | I21: 19.44 | J21: 210.63 | K21: 5.61 | L21: ТТК 436
B22: Какао с молоком | C22: 8.16 | D22: 200 | E22: 4.08 | F22: 3.54 | G22: 17.58 | H22: 118.6 | I22: 152.22 | J22: 90 | K22: 1.59 | L22: ТТК382
B23: Хлеб пшеничный в/с | C23: 3.35 | D23: 50 | E23: 2.72 | F23: 0.19 | G23: 0.19 | H23: 74.6 | I23: 14.43 | J23: 19.5 | K23: 0 | L23: ТТК 61
B24: Хлеб дарницкий | C24: 1.38 | D24: 25 | E24: 2.72 | F24: 0.19 | G24: 0.19 | H24: 74.6 | I24: 14.43 | J24: 19.5 | K24: 0 | L24: ТТК 61
B25: Фрукты (груша свежая) | C25: 9.6 | D25: 120 | E25: 0.6 | F25: 0.46 | G25: 14.7 | H25: 68.26 | I25: 17.5 | J25: 17.3 | K25: 7.5 | L25: ТТК 338
B27: ИТОГО | C27: =SUM(C21:C26) -> 55.22 | E27: 27.33 | F27: 9.05 | G27: 46.38 | H27: 501.69 | I27: 218.02 | J27: 356.93 | K27: 14.7
A28: 1 неделя -среда
A29: горячий завтрак | B29: Салат из свеклы отварной | C29: 1.35 | D29: 60 | E29: 0.86 | F29: 3.65 | G29: 5.02 | H29: 56.34 | I29: 21.09 | J29: 24.58 | K29: 5.7 | L29: ТТК 33
B30: Гуляш из говядины | C30: 42.13 | D30: 50/75 | E30: 14.55 | F30: 16.79 | G30: 2.89 | H30: 221 | I30: 21.81 | J30: 154 | K30: 0.92 | L30: ТТК 260
B31: Макароны отварные | C31: 4.9 | D31: 150 | E31: 5.46 | F31: 5.79 | G31: 30.45 | H31: 195.7 | I31: 12.14 | J31: 7.5 | K31: 0 | L31: ТТК 202
B32: Чай с сахаром | C32: 1.48 | D32: 200/15 | E32: 0.07 | F32: 0.02 | G32: 15 | H32: 60 | I32: 11.1 | J32: 7.5 | K32: 0.03 | L32: ТТК 376
B33: Хлеб пшеничный в/с | C33: 3.35 | D33: 55 | E33: 2.72 | F33: 0.19 | G33: 0.19 | H33: 74.6 | I33: 14.43 | J33: 19.5 | K33: 0 | L33: ТТК 61
B34: Хлеб дарницкий | C34: 1.38 | D34: 25 | E34: 2.72 | F34: 0.19 | G34: 0.19 | H34: 74.6 | I34: 14.43 | J34: 19.5 | K34: 0 | L34: ТТК 61
B35: Фрукты (яблоко свежее) | C35: 10.37 | D35: 150 | E35: 0.6 | F35: 0.6 | G35: 14.7 | H35: 70.3 | I35: 24 | J35: 13.5 | K35: 15 | L35: ТТК 338
B37: ИТОГО | C37: =SUM(C29:C36) -> 64.96 | E37: =SUM(E29:E36) -> 26.98 | F37: 27.23 | G37: 68.44 | H37: 752.54 | I37: 119 | J37: 246.08 | K37: 21.65
A38: 1 неделя - четверг
A39: горячий завтрак | B39: Салат из свежей капусты | C39: 1.24 | D39: 60 | E39: 0.86 | F39: 3.65 | G39: 5.02 | H39: 56.34 | I39: 21.09 | J39: 24.58 | K39: 5.7 | L39: ТТК 43
B40: Котлета рубленная из птицы | C40: 31.58 | D40: 90 | E40: 14.6 | F40: 14.8 | G40: 11.5 | H40: 236.3 | I40: 56 | J40: 105.9 | K40: 0.26 | L40: ТТК 307
B41: Пюре картофельное | C41: 7.08 | D41: 150 | E41: 3.06 | F41: 4.8 | G41: 20.45 | H41: 137.25 | I41: 36.98 | J41: 86.6 | K41: 18.17 | L41: ТТК 694
B42: Чай с лимоном | C42: 2.5 | D42: 200 | E42: 0.13 | F42: 0.02 | G42: 15.2 | H42: 62 | I42: 14.2 | J42: 22 | K42: 2.83 | L42: ТТК 377
B43: Хлеб пшеничный в/с | C43: 3.35 | D43: 50 | E43: 2.72 | F43: 0.49 | G43: 0.49 | H43: 74.6 | I43: 14.43 | J43: 19.5 | K43: 0 | L43: ТТК 61
B44: Хлеб дарницкий | C44: 1.38 | D44: 25 | E44: 2.72 | F44: 0.49 | G44: 0.49 | H44: 74.6 | I44: 14.43 | J44: 19.5 | K44: 0 | L44: ТТК 61
B45: Фрукты (апельсин свежий) | C45: 10.5 | D45: 150 | E45: 0.3 | F45: 1.35 | G45: 12.15 | H45: 64.5 | I45: 0.72 | J45: 0 | K45: 144 | L45: ТТК 907
B47: ИТОГО | C47: =SUM(C39:C46) -> 57.63 | E47: 24.39 | F47: 25.6 | G47: 65.3 | H47: 705.59 | I47: 157.85 | J47: 278.08 | K47: 170.96
A48: 1 неделя - пятница
A49: горячий завтрак | B49: Горбуша тушеная с овощами | C49: 29.43 | D49: 90 | E49: 7.75 | F49: 3.95 | G49: 2.8 | H49: 125 | I49: 39.07 | J49: 56.3 | K49: 3.73 | L49: ТТК 229
B50: Рис отварной | C50: 7.07 | D50: 150 | E50: 3.65 | F50: 5.37 | G50: 36.68 | H50: 209.7 | I50: 2.4 | J50: 34.2 | K50: 0 | L50: ТТК 304
B51: Чай с сахаром | C51: 1.48 | D51: 200/15 | E51: 0.07 | F51: 0.02 | G51: 15 | H51: 60 | I51: 11.1 | J51: 7.5 | K51: 0.03 | L51: ТТК 376
B52: Хлеб пшеничный в/с | C52: 3.35 | D52: 50 | E52: 2.72 | F52: 0.49 | G52: 0.49 | H52: 74.6 | I52: 14.43 | J52: 19.5 | K52: 0 | L52: ТТК 61
B53: Хлеб дарницкий | C53: 1.38 | D53: 25 | E53: 2.72 | F53: 0.49 | G53: 0.49 | H53: 74.6 | I53: 14.43 | J53: 19.5 | K53: 0 | L53: ТТК 61
B54: Фрукты (яблоко свежее) | C54: 10.37 | D54: 150 | E54: 0.6 | F54: 0.6 | G54: 14.7 | H54: 70.3 | I54: 24 | J54: 13.5 | K54: 15 | L54: ТТК 338
B57: ИТОГО | C57: =SUM(C49:C56) -> 53.08 | E57: =SUM(E49:E56) -> 17.51 | F57: 10.92 | G57: 70.16 | H57: 614.2 | I57: 105.43 | J57: 150.5 | K57: 18.76
A58: 1 неделя -суббота
A59: горячий завтрак | B59: Пельмени отварные | C59: 44.41 | D59: 180/5 | E59: 10.34 | F59: 12.18 | G59: 20.34 | H59: 237 | I59: 11.8 | J59: 237.4 | K59: 0.491 | L59: ТТК 168
B60: Чай с лимоном | C60: 2.5 | D60: 200 | E60: 0.13 | F60: 0.02 | G60: 15.2 | H60: 62 | I60: 14.2 | J60: 22 | K60: 2.83 | L60: ТТК 377
B61: Хлеб пшеничный в/с | C61: 3.35 | D61: 50 | E61: 2.72 | F61: 0.49 | G61: 0.49 | H61: 74.6 | I61: 14.43 | J61: 19.5 | K61: 0 | L61: ТТК 61
B62: Сок фруктово-ягодный | C62: 13 | D62: 200 | E62: 1 | F62: 0 | G62: 20.2 | H62: 84.4 | I62: 14 | J62: 10 | K62: 4 | L62: ТТК 389
B63: ИТОГО | C63: =SUM(C59:C62) -> 63.26 | E63: =SUM(E59:E61) -> 13.19 | F63: 12.69 | G63: 36.03 | H63: 373.6 | I63: 40.43 | J63: 278.9 | K63: 3.321
A64: 2 неделя - понедельник
A65: горячий завтрак | B65: Салат из свежей капусты | C65: 1.24 | D65: 60 | E65: 0.86 | F65: 3.65 | G65: 5.02 | H65: 56.34 | I65: 21.09 | J65: 24.58 | K65: 5.7 | L65: ТТК 43
B66: Тефтели мясные с рисом | C66: 20.51 | D66: 55 | E66: 7.58 | F66: 7.84 | G66: 7.95 | H66: 125.36 | I66: 14.88 | J66: 15.89 | K66: 0.44 | L66: ТТК 287
B67: Каша гречневая рассыпчатая с маслом | C67: 6.45 | D67: 150 | E67: 8.6 | F67: 6.09 | G67: 38.64 | H67: 243.75 | I67: 14.82 | J67: 220.3 | K67: 0 | L67: ТТК 302
B68: Чай с сахаром | C68: 1.48 | D68: 200/15 | E68: 0.07 | F68: 0.02 | G68: 15 | H68: 60 | I68: 11.1 | J68: 7.5 | K68: 0.03 | L68: ТТК 376
B69: Хлеб пшеничный в/с | C69: 3.35 | D69: 50 | E69: 2.72 | F69: 0.49 | G69: 0.49 | H69: 74.6 | I69: 14.43 | J69: 19.5 | K69: 0 | L69: ТТК 61
B70: Хлеб дарницкий | C70: 1.38 | D70: 25 | E70: 2.72 | F70: 0.49 | G70: 0.49 | H70: 74.6 | I70: 14.43 | J70: 19.5 | K70: 0 | L70: ТТК 61
B71: Фрукты (груша свежая) | C71: 9.6 | D71: 120 | E71: 0.6 | F71: 0.46 | G71: 14.7 | H71: 68.26 | I71: 17.5 | J71: 17.3 | K71: 7.5 | L71: ТТК 338
B73: ИТОГО | C73: =SUM(C65:C72) -> 44.01 | E73: 23.15 | F73: 19.04 | G73: 82.29 | H73: 702.91 | I73: 108.25 | J73: 324.57 | K73: 13.67
A75: 2 неделя - вторник
A76: горячий завтрак | B76: Салат из свеклы отварной | C76: 1.35 | D76: 60 | E76: 0.86 | F76: 3.65 | G76: 5.02 | H76: 56.34 | I76: 21.09 | J76: 24.58 | K76: 5.7 | L76: ТТК 33
B77: Плов из птицы | C77: 34.53 | D77: 50/150 | E77: 14 | F77: 19 | G77: 42 | H77: 377 | I77: 22 | J77: 204 | K77: 0.62 | L77: ТТК 304
B78: Кофейный напиток | C78: 8.21 | D78: 200 | E78: 3.17 | F78: 2.68 | G78: 15.9 | H78: 100.6 | I78: 125.78 | J78: 14 | K78: 1.3 | L78: ТТК 379
B79: Хлеб пшеничный в/с | C79: 3.35 | D79: 50 | E79: 2.72 | F79: 0.49 | G79: 0.49 | H79: 74.6 | I79: 14.43 | J79: 19.5 | K79: 0 | L79: ТТК 61
B80: Хлеб дарницкий | C80: 1.38 | D80: 25 | E80: 2.72 | F80: 0.49 | G80: 0.49 | H80: 74.6 | I80: 14.43 | J80: 19.5 | K80: 0 | L80: ТТК 61
B81: Фрукты (апельсин свежий) | C81: 10.5 | D81: 150 | E81: 0.3 | F81: 1.35 | G81: 12.15 | H81: 64.5 | I81: 0.72 | J81: 0 | K81: 144 | L81: ТТК 907
B83: ИТОГО | C83: =SUM(C76:C82) -> 59.32 | E83: =SUM(E76:E82) -> 23.77 | F83: 27.66 | G83: 76.05 | H83: 747.64 | I83: 198.45 | J83: 281.58 | K83: 151.62
A84: 2 неделя - среда
A85: горячий завтрак | B85: Горбуша тушеная с овощами | C85: 29.43 | D85: 90 | E85: 7.75 | F85: 3.95 | G85: 2.8 | H85: 125 | I85: 39.07 | J85: 56.3 | K85: 3.73 | L85: ТТК 229
B86: Пюре картофельное | C86: 7.08 | D86: 150 | E86: 3.06 | F86: 4.8 | G86: 20.45 | H86: 137.25 | I86: 36.98 | J86: 86.6 | K86: 18.17 | L86: ТТК 694
B87: Чай с лимоном | C87: 2.5 | D87: 200 | E87: 0.13 | F87: 0.02 | G87: 15.2 | H87: 62 | I87: 14.2 | J87: 22 | K87: 2.83 | L87: ТТК 377
B88: Хлеб пшеничный в/с | C88: 3.35 | D88: 50 | E88: 2.72 | F88: 0.49 | G88: 0.49 | H88: 74.6 | I88: 14.43 | J88: 19.5 | K88: 0 | L88: ТТК 61
B89: Хлеб дарницкий | C89: 1.38 | D89: 25 | E89: 2.72 | F89: 0.49 | G89: 0.49 | H89: 74.6 | I89: 14.43 | J89: 19.5 | K89: 0 | L89: ТТК 61
B90: Сок фруктово-ягодный | C90: 13 | D90: 200 | E90: 1 | F90: 0 | G90: 20.2 | H90: 84.4 | I90: 14 | J90: 10 | K90: 4 | L90: ТТК 389
B92: ИТОГО | C92: =SUM(C85:C91) -> 56.74 | E92: =SUM(E85:E91) -> 17.38 | F92: 9.75 | G92: 59.63 | H92: 557.85 | I92: 133.11 | J92: 213.9 | K92: 28.73
A93: 2 неделя - четверг
A94: горячий завтрак | B94: Салат из моркови с сахаром | C94: 1.31 | D94: 60 | E94: 1.08 | F94: 0.18 | G94: 8.62 | H94: 40.4 | I94: 24.28 | J94: 44 | K94: 6.25 | L94: ТТК 38
B95: Котлета рубленная из птицы | C95: 31.58 | D95: 90 | E95: 14.6 | F95: 14.8 | G95: 11.5 | H95: 236.3 | I95: 56 | J95: 105.9 | K95: 0.26 | L95: ТТК 307
B96: Макароны отварные | C96: 4.9 | D96: 150 | E96: 5.46 | F96: 5.79 | G96: 30.45 | H96: 195.7 | I96: 12.14 | J96: 7.5 | K96: 0 | L96: ТТК 202
B97: Какао с молоком | C97: 8.16 | D97: 200 | E97: 4.08 | F97: 3.54 | G97: 17.58 | H97: 118.6 | I97: 152.22 | J97: 90 | K97: 1.59 | L97: ТТК382
B98: Хлеб пшеничный в/с | C98: 3.35 | D98: 50 | E98: 2.72 | F98: 0.49 | G98: 0.49 | H98: 74.6 | I98: 14.43 | J98: 19.5 | K98: 0 | L98: ТТК 61
B99: Хлеб дарницкий | C99: 1.38 | D99: 25 | E99: 2.72 | F99: 0.49 | G99: 0.49 | H99: 74.6 | I99: 14.43 | J99: 19.5 | K99: 0 | L99: ТТК 61
B100: Фрукты (яблоко свежее) | C100: 10.37 | D100: 150 | E100: 0.6 | F100: 0.6 | G100: 14.7 | H100: 70.3 | I100: 24 | J100: 13.5 | K100: 15 | L100: ТТК 338
B102: ИТОГО | C102: =SUM(C94:C101) -> 61.05 | E102: 31.26 | F102: 25.89 | G102: 83.83 | H102: 810.5 | I102: 297.5 | J102: 299.9 | K102: 23.1
A103: 2 неделя - пятница
A104: горячий завтрак | B104: Гуляш из птицы | C104: 35.89 | D104: 50/50 | E104: 12.11 | F104: 10.76 | G104: 2.39 | H104: 164 | I104: 85.18 | J104: 163.193 | K104: 6.32 | L104: ТТК 437
B105: Рис отварной | C105: 7.07 | D105: 150 | E105: 3.65 | F105: 5.37 | G105: 36.68 | H105: 209.7 | I105: 2.4 | J105: 34.2 | K105: 0 | L105: ТТК 304
B106: Чай с сахаром | C106: 1.48 | D106: 200/15 | E106: 0.07 | F106: 0.02 | G106: 15 | H106: 60 | I106: 11.1 | J106: 7.5 | K106: 0.03 | L106: ТТК 376
B107: Хлеб пшеничный в/с | C107: 3.35 | D107: 50 | E107: 2.72 | F107: 0.49 | G107: 0.49 | H107: 74.6 | I107: 14.43 | J107: 19.5 | K107: 0 | L107: ТТК 61
B108: Хлеб дарницкий | C108: 1.38 | D108: 25 | E108: 2.72 | F108: 0.49 | G108: 0.49 | H108: 74.6 | I108: 14.43 | J108: 19.5 | K108: 0 | L108: ТТК 61
B109: Сок фруктово-ягодный | C109: 13 | D109: 200 | E109: 1 | F109: 0 | G109: 20.2 | H109: 84.4 | I109: 14 | J109: 10 | K109: 4 | L109: ТТК 389
B111: ИТОГО | C111: =SUM(C104:C110) -> 62.17 | E111: 22.27 | F111: 17.13 | G111: 75.25 | H111: 667.3 | I111: 141.54 | J111: 253.893 | K111: 10.35
A112: 2 неделя - суббота
A113: горячий завтрак | B113: Каша молочная манная | C113: 10.61 | D113: 200/5 | E113: 6.11 | F113: 10.72 | G113: 32.38 | H113: 251 | I113: 133.77 | J113: 67 | K113: 1.17 | L113: ТТК 181
B114: Сыр порционный | C114: 12.14 | D114: 20 | E114: 5.2 | F114: 5.36 | G114: 0 | H114: 70.4 | I114: 208 | J114: 0 | K114: 0.56 | L114: ТТК 29
B115: Чай с лимоном | C115: 2.5 | D115: 200 | E115: 0.13 | F115: 0.02 | G115: 15.2 | H115: 62 | I115: 14.2 | J115: 22 | K115: 2.83 | L115: ТТК 377
B116: Булочка сдобная | C116: 8.92 | D116: 50 | E116: 4.2 | F116: 7.06 | G116: 32.064 | H116: 209.33 | I116: 9.22 | J116: 37.22 | K116: 0 | L116: ТТК 34
B117: Фрукты (апельсин свежий) | C117: 10.5 | D117: 150 | E117: 0.3 | F117: 1.35 | G117: 12.15 | H117: 64.5 | I117: 0.72 | J117: 0 | K117: 144 | L117: ТТК 907
B118: Хлеб дарницкий | C118: 1.38 | D118: 25 | E118: 2.72 | F118: 0.49 | G118: 0.49 | H118: 74.6 | I118: 14.43 | J118: 19.5 | K118: 0 | L118: ТТК 61
B119: ИТОГО | C119: =SUM(C113:C118) -> 46.05 | E119: =SUM(E113:E116) -> 15.64 | F119: 23.16 | G119: 79.644 | H119: 592.73 | I119: 365.19 | J119: 126.22 | K119: 4.56
B121: ИТОГО за 12 дней | C121: =C19+C27+C37+C47+C57+C63+C73+C83+C92+C102+C111+C119 -> 688.61 | E121: =E19+E27+E37+E47+E57+E63+E73+E83+E92+E102+E111+E119 -> 275.22 | F121: 240.19 | G121: 835.464 | H121: 7936.2 | I121: 2023.29 | J121: 3191.193 | K121: 485.761
B123: средняя величина за 1 день | C123: =C121/12 -> 57.38416667 | E123: 22.935 | F123: 20.01583333 | G123: 69.622 | H123: 661.35 | I123: 168.6075 | J123: 265.93275 | K123: 40.48008333

Sheet потребность
A1: КАЛЬКУЛЯЦИЯ БЛЮД
A2: наименование | B2: Горбуша тушенная с овощами | C2: хлеб пшеничный | D2: хлеб дарницкий | E2: чай с сахаром | F2: салат из моркови с сахаром | G2: котлеты рубленные из говядины | H2: гуляш из говядины | I2: каша гречневая рассыпчатая | J2: чай с лимоном | K2: кофейный напиток | L2: сыр порционный | M2: гуляш из птицы | N2: груша | O2: рис отварной | P2: макароны отварные | Q2: котлеты рубленные из птицы | R2: картофельное пюре | S2: какао с молоком | T2: плов из птицы | U2: салат из свеклы отварной | V2: пельмени отварные | W2: салат из свежей капусты | X2: жаркое из птицы | Y2: каша манная | Z2: булочка | AA2: тефтели мясные с рисом | AB2: сок фруктово-ягодный | AC2: яблоко | AD2: апельсины | AE2: помидор | AF2: огурец | AG2: итого на 1 ребенка на 2 недели | AH2: всего на 16 недель | AI2: дж 1 225 | AJ2: дж 2 315 | AK2: дж гимназия 247 | AL2: сарман сош 205 | AM2: каран 12 | AN2: сарман гимназия 272 | AO2: азалак 11 | AP2: алекс 23 | AQ2: альмэт 55 | AR2: большенуркей 32 | AS2: юлтимер 4 | AT2: карашай 12 | AU2: илексаз 16 | AV2: кавзияк 17 | AW2: кутемели 7 | AX2: лэке 3 | AY2: леш-тамак 42 | AZ2: муртамак 9 | BA2: петровка 57 | BB2: ст.кашир 26 | BC2: сарайлы 12 | BD2: сакловбаш 18 | BE2: ст.мензелябаш 15 | BF2: шарли 9
A3: количество раз за 2 недели | B3: 2 | C3: 11 | D3: 10 | E3: 4 | F3: 2 | G3: 1 | H3: 1 | I3: 2 | J3: 5 | K3: 1 | L3: 0 | M3: 1 | N3: 2 | O3: 2 | P3: 2 | Q3: 2 | R3: 2 | S3: 2 | T3: 1 | U3: 2 | V3: 1 | W3: 2 | X3: 1 | Y3: 1 | Z3: 1 | AA3: 1 | AB3: 3 | AC3: 4 | AD3: 3 | AE3: 1 | AF3: 1
A4: лимон | J4: 0.04 | AG4: =SUM(B4:AF4) -> 0.04 | AH4: =AG4*8 -> 0.32 | AI4: =AH4*225 -> 72 | AJ4: =AH4*315 -> 100.8 | AK4: =AH4*247 -> 79.04 | AL4: =AH4*205 -> 65.6 | AM4: =AH4*12 -> 3.84 | AN4: =AH4*272 -> 87.04 | AO4: =AH4*11 -> 3.52 | AP4: =AH4*23 -> 7.36 | AQ4: =AH4*55 -> 17.6 | AR4: =AH4*32 -> 10.24 | AS4: =AH4*4 -> 1.28 | AT4: =AH4*12 -> 3.84 | AU4: =AH4*16 -> 5.12 | AV4: =AH4*17 -> 5.44 | AW4: =AH4*7 -> 2.24 | AX4: =AH4*3 -> 0.96 | AY4: =AH4*42 -> 13.44 | AZ4: =AH4*9 -> 2.88 | BA4: =AH4*57 -> 18.24 | BB4: =AH4*26 -> 8.32 | BC4: =AH4*12 -> 3.84 | BD4: =AH4*18 -> 5.76 | BE4: =AH4*15 -> 4.8 | BF4: =AH4*9 -> 2.88
A5: грудка | M5: 0.107 | Q5: 0.18 | T5: 0.09 | X5: 0.096 | AG5: 0.473 | AH5: =AG5*8 -> 3.784 | AI5: =AH5*225 -> 851.4 | AJ5: =AH5*315 -> 1191.96 | AK5: =AH5*247 -> 934.648 | AL5: =AH5*205 -> 775.72 | AM5: =AH5*12 -> 45.408 | AN5: =AH5*272 -> 1029.248 | AO5: =AH5*11 -> 41.624 | AP5: =AH5*23 -> 87.032 | AQ5: =AH5*55 -> 208.12 | AR5: =AH5*32 -> 121.088 | AS5: =AH5*4 -> 15.136 | AT5: =AH5*12 -> 45.408 | AU5: =AH5*16 -> 60.544 | AV5: =AH5*17 -> 64.328 | AW5: =AH5*7 -> 26.488 | AX5: =AH5*3 -> 11.352 | AY5: =AH5*42 -> 158.928 | AZ5: =AH5*9 -> 34.056 | BA5: =AH5*57 -> 215.688 | BB5: =AH5*26 -> 98.384 | BC5: =AH5*12 -> 45.408 | BD5: =AH5*18 -> 68.112 | BE5: =AH5*15 -> 56.76 | BF5: =AH5*9 -> 34.056
A6: какао | S6: 0.008 | AG6: 0.008 | AH6: 0.064 | AI6: 14.4 | AJ6: 20.16 | AK6: 15.808 | AL6: 13.12 | AM6: 0.768 | AN6: 17.408 | AO6: 0.704 | AP6: 1.472 | AQ6: 3.52 | AR6: 2.048 | AS6: 0.256 | AT6: 0.768 | AU6: 1.024 | AV6: 1.088 | AW6: 0.448 | AX6: 0.192 | AY6: 2.688 | AZ6: 0.576 | BA6: 3.648 | BB6: 1.664 | BC6: 0.768 | BD6: 1.152 | BE6: 0.96 | BF6: 0.576
A7: капуста | W7: 0.136 | AG7: 0.136 | AH7: 1.088 | AI7: 244.8 | AJ7: 342.72 | AK7: 268.736 | AL7: 223.04 | AM7: 13.056 | AN7: 295.936 | AO7: 11.968 | AP7: 25.024 | AQ7: 59.84 | AR7: 34.816 | AS7: 4.352 | AT7: 13.056 | AU7: 17.408 | AV7: 18.496 | AW7: 7.616 | AX7: 3.264 | AY7: 45.696 | AZ7: 9.792 | BA7: 62.016 | BB7: 28.288 | BC7: 13.056 | BD7: 19.584 | BE7: 16.32 | BF7: 9.792
A8: картофель | R8: 0.342 | X8: 0.106 | AG8: 0.448 | AH8: 3.584 | AI8: 806.4 | AJ8: 1128.96 | AK8: 885.248 | AL8: 734.72 | AM8: 43.008 | AN8: 974.848 | AO8: 39.424 | AP8: 82.432 | AQ8: 197.12 | AR8: 114.688 | AS8: 14.336 | AT8: 43.008 | AU8: 57.344 | AV8: 60.928 | AW8: 25.088 | AX8: 10.752 | AY8: 150.528 | AZ8: 32.256 | BA8: 204.288 | BB8: 93.184 | BC8: 43.008 | BD8: 64.512 | BE8: 53.76 | BF8: 32.256
A9: кофейный напиток | K9: 0.005 | AG9: 0.005 | AH9: 0.04 | AI9: 9 | AJ9: 12.6 | AK9: 9.88 | AL9: 8.2 | AM9: 0.48 | AN9: 10.88 | AO9: 0.44 | AP9: 0.92 | AQ9: 2.2 | AR9: 1.28 | AS9: 0.16 | AT9: 0.48 | AU9: 0.64 | AV9: 0.68 | AW9: 0.28 | AX9: 0.12 | AY9: 1.68 | AZ9: 0.36 | BA9: 2.28 | BB9: 1.04 | BC9: 0.48 | BD9: 0.72 | BE9: 0.6 | BF9: 0.36
A10: манная крупа | Y10: 0.03 | AG10: 0.03 | AH10: 0.24 | AI10: 54 | AJ10: 75.6 | AK10: 59.28 | AL10: 49.2 | AM10: 2.88 | AN10: 65.28 | AO10: 2.64 | AP10: 5.52 | AQ10: 13.2 | AR10: 7.68 | AS10: 0.96 | AT10: 2.88 | AU10: 3.84 | AV10: 4.08 | AW10: 1.68 | AX10: 0.72 | AY10: 10.08 | AZ10: 2.16 | BA10: 13.68 | BB10: 6.24 | BC10: 2.88 | BD10: 4.32 | BE10: 3.6 | BF10: 2.16
A11: гречка | I11: 0.07 | AG11: 0.07 | AH11: 0.56 | AI11: 126 | AJ11: 176.4 | AK11: 138.32 | AL11: 114.8 | AM11: 6.72 | AN11: 152.32 | AO11: 6.16 | AP11: 12.88 | AQ11: 30.8 | AR11: 17.92 | AS11: 2.24 | AT11: 6.72 | AU11: 8.96 | AV11: 9.52 | AW11: 3.92 | AX11: 1.68 | AY11: 23.52 | AZ11: 5.04 | BA11: 31.92 | BB11: 14.56 | BC11: 6.72 | BD11: 10.08 | BE11: 8.4 | BF11: 5.04
A12: сыр | L12: 0.0209 | AG12: 0.0209 | AH12: 0.1672 | AI12: 37.62 | AJ12: 52.668 | AK12: 41.2984 | AL12: 34.276 | AM12: 2.0064 | AN12: 45.4784 | AO12: 1.8392 | AP12: 3.8456 | AQ12: 9.196 | AR12: 5.3504 | AS12: 0.6688 | AT12: 2.0064 | AU12: 2.6752 | AV12: 2.8424 | AW12: 1.1704 | AX12: 0.5016 | AY12: 7.0224 | AZ12: 1.5048 | BA12: 9.5304 | BB12: 4.3472 | BC12: 2.0064 | BD12: 3.0096 | BE12: 2.508 | BF12: 1.5048
A13: груша | N13: 0.24 | AG13: 0.24 | AH13: 1.92 | AI13: 432 | AJ13: 604.8 | AK13: 474.24 | AL13: 393.6 | AM13: 23.04 | AN13: 522.24 | AO13: 21.12 | AP13: 44.16 | AQ13: 105.6 | AR13: 61.44 | AS13: 7.68 | AT13: 23.04 | AU13: 30.72 | AV13: 32.64 | AW13: 13.44 | AX13: 5.76 | AY13: 80.64 | AZ13: 17.28 | BA13: 109.44 | BB13: 49.92 | BC13: 23.04 | BD13: 34.56 | BE13: 28.8 | BF13: 17.28
A14: макароны | P14: 0.104 | AG14: 0.104 | AH14: 0.832 | AI14: 187.2 | AJ14: 262.08 | AK14: 205.504 | AL14: 170.56 | AM14: 9.984 | AN14: 226.304 | AO14: 9.152 | AP14: 19.136 | AQ14: 45.76 | AR14: 26.624 | AS14: 3.328 | AT14: 9.984 | AU14: 13.312 | AV14: 14.144 | AW14: 5.824 | AX14: 2.496 | AY14: 34.944 | AZ14: 7.488 | BA14: 47.424 | BB14: 21.632 | BC14: 9.984 | BD14: 14.976 | BE14: 12.48 | BF14: 7.488
A15: лук | B15: 0.028 | G15: 0.007 | H15: 0.018 | M15: 0.018 | T15: 0.011 | X15: 0.012 | AA15: 0.013 | AG15: 0.107 | AH15: 0.856 | AI15: 192.6 | AJ15: 269.64 | AK15: 211.432 | AL15: 175.48 | AM15: 10.272 | AN15: 232.832 | AO15: 9.416 | AP15: 19.688 | AQ15: 47.08 | AR15: 27.392 | AS15: 3.424 | AT15: 10.272 | AU15: 13.696 | AV15: 14.552 | AW15: 5.992 | AX15: 2.568 | AY15: 35.952 | AZ15: 7.704 | BA15: 48.792 | BB15: 22.256 | BC15: 10.272 | BD15: 15.408 | BE15: 12.84 | BF15: 7.704
A16: горбуша или треска | B16: 0.246 | AG16: 0.246 | AH16: 1.968 | AI16: 442.8 | AJ16: 619.92 | AK16: 486.096 | AL16: 403.44 | AM16: 23.616 | AN16: 535.296 | AO16: 21.648 | AP16: 45.264 | AQ16: 108.24 | AR16: 62.976 | AS16: 7.872 | AT16: 23.616 | AU16: 31.488 | AV16: 33.456 | AW16: 13.776 | AX16: 5.904 | AY16: 82.656 | AZ16: 17.712 | BA16: 112.176 | BB16: 51.168 | BC16: 23.616 | BD16: 35.424 | BE16: 29.52 | BF16: 17.712
A17: масло раст | B17: 0.014 | G17: 0.003 | H17: 0.005 | M17: 0.005 | T17: 0.005 | U17: 0.004 | W17: 0.003 | X17: 0.004 | AA17: 0.002 | AG17: 0.045 | AH17: 0.36 | AI17: 81 | AJ17: 113.4 | AK17: 88.92 | AL17: 73.8 | AM17: 4.32 | AN17: 97.92 | AO17: 3.96 | AP17: 8.28 | AQ17: 19.8 | AR17: 11.52 | AS17: 1.44 | AT17: 4.32 | AU17: 5.76 | AV17: 6.12 | AW17: 2.52 | AX17: 1.08 | AY17: 15.12 | AZ17: 3.24 | BA17: 20.52 | BB17: 9.36 | BC17: 4.32 | BD17: 6.48 | BE17: 5.4 | BF17: 3.24
A18: масло сливочное | I18: 0.01 | O18: 0.01 | P18: 0.01 | Q18: 0.006 | R18: 0.01 | V18: 0.005 | Y18: 0.005 | AG18: 0.056 | AH18: 0.448 | AI18: 100.8 | AJ18: 141.12 | AK18: 110.656 | AL18: 91.84 | AM18: 5.376 | AN18: 121.856 | AO18: 4.928 | AP18: 10.304 | AQ18: 24.64 | AR18: 14.336 | AS18: 1.792 | AT18: 5.376 | AU18: 7.168 | AV18: 7.616 | AW18: 3.136 | AX18: 1.344 | AY18: 18.816 | AZ18: 4.032 | BA18: 25.536 | BB18: 11.648 | BC18: 5.376 | BD18: 8.064 | BE18: 6.72 | BF18: 4.032
A19: морковь | B19: 0.064 | F19: 0.146 | T19: 0.016 | W19: 0.026 | AG19: 0.252 | AH19: 2.016 | AI19: 453.6 | AJ19: 635.04 | AK19: 497.952 | AL19: 413.28 | AM19: 24.192 | AN19: 548.352 | AO19: 22.176 | AP19: 46.368 | AQ19: 110.88 | AR19: 64.512 | AS19: 8.064 | AT19: 24.192 | AU19: 32.256 | AV19: 34.272 | AW19: 14.112 | AX19: 6.048 | AY19: 84.672 | AZ19: 18.144 | BA19: 114.912 | BB19: 52.416 | BC19: 24.192 | BD19: 36.288 | BE19: 30.24 | BF19: 18.144
A20: мука | H20: 0.004 | M20: 0.004 | AG20: 0.008 | AH20: 0.064 | AI20: 14.4 | AJ20: 20.16 | AK20: 15.808 | AL20: 13.12 | AM20: 0.768 | AN20: 17.408 | AO20: 0.704 | AP20: 1.472 | AQ20: 3.52 | AR20: 2.048 | AS20: 0.256 | AT20: 0.768 | AU20: 1.024 | AV20: 1.088 | AW20: 0.448 | AX20: 0.192 | AY20: 2.688 | AZ20: 0.576 | BA20: 3.648 | BB20: 1.664 | BC20: 0.768 | BD20: 1.152 | BE20: 0.96 | BF20: 0.576
A21: мясо | G21: 0.075 | H21: 0.107 | AA21: 0.052 | AG21: 0.234 | AH21: 1.872 | AI21: 421.2 | AJ21: 589.68 | AK21: 462.384 | AL21: 383.76 | AM21: 22.464 | AN21: 509.184 | AO21: 20.592 | AP21: 43.056 | AQ21: 102.96 | AR21: 59.904 | AS21: 7.488 | AT21: 22.464 | AU21: 29.952 | AV21: 31.824 | AW21: 13.104 | AX21: 5.616 | AY21: 78.624 | AZ21: 16.848 | BA21: 106.704 | BB21: 48.672 | BC21: 22.464 | BD21: 33.696 | BE21: 28.08 | BF21: 16.848
A22: пельмени | V22: 0.14 | AG22: 0.14 | AH22: 1.12 | AI22: 252 | AJ22: 352.8 | AK22: 276.64 | AL22: 229.6 | AM22: 13.44 | AN22: 304.64 | AO22: 12.32 | AP22: 25.76 | AQ22: 61.6 | AR22: 35.84 | AS22: 4.48 | AT22: 13.44 | AU22: 17.92 | AV22: 19.04 | AW22: 7.84 | AX22: 3.36 | AY22: 47.04 | AZ22: 10.08 | BA22: 63.84 | BB22: 29.12 | BC22: 13.44 | BD22: 20.16 | BE22: 16.8 | BF22: 10.08
A23: рис | O23: 0.108 | T23: 0.057 | AA23: 0.005 | AG23: 0.17 | AH23: 1.36 | AI23: 306 | AJ23: 428.4 | AK23: 335.92 | AL23: 278.8 | AM23: 16.32 | AN23: 369.92 | AO23: 14.96 | AP23: 31.28 | AQ23: 74.8 | AR23: 43.52 | AS23: 5.44 | AT23: 16.32 | AU23: 21.76 | AV23: 23.12 | AW23: 9.52 | AX23: 4.08 | AY23: 57.12 | AZ23: 12.24 | BA23: 77.52 | BB23: 35.36 | BC23: 16.32 | BD23: 24.48 | BE23: 20.4 | BF23: 12.24
A24: сахар | E24: 0.06 | F24: 0.002 | J24: 0.075 | K24: 0.02 | S24: 0.04 | W24: 0.004 | Y24: 0.003 | AG24: 0.204 | AH24: 1.632 | AI24: 367.2 | AJ24: 514.08 | AK24: 403.104 | AL24: 334.56 | AM24: 19.584 | AN24: 443.904 | AO24: 17.952 | AP24: 37.536 | AQ24: 89.76 | AR24: 52.224 | AS24: 6.528 | AT24: 19.584 | AU24: 26.112 | AV24: 27.744 | AW24: 11.424 | AX24: 4.896 | AY24: 68.544 | AZ24: 14.688 | BA24: 93.024 | BB24: 42.432 | BC24: 19.584 | BD24: 29.376 | BE24: 24.48 | BF24: 14.688
A25: рыба минтай | AG25: 0 | AH25: 0 | AI25: 0 | AJ25: 0 | AK25: 0 | AL25: 0 | AM25: 0 | AN25: 0 | AO25: 0 | AP25: 0 | AQ25: 0 | AR25: 0 | AS25: 0 | AT25: 0 | AU25: 0 | AV25: 0 | AW25: 0 | AX25: 0 | AY25: 0 | AZ25: 0 | BA25: 0 | BB25: 0 | BC25: 0 | BD25: 0 | BE25: 0 | BF25: 0
A26: свекла | U26: 0.146 | AG26: 0.146 | AH26: 1.168 | AI26: 262.8 | AJ26: 367.92 | AK26: 288.496 | AL26: 239.44 | AM26: 14.016 | AN26: 317.696 | AO26: 12.848 | AP26: 26.864 | AQ26: 64.24 | AR26: 37.376 | AS26: 4.672 | AT26: 14.016 | AU26: 18.688 | AV26: 19.856 | AW26: 8.176 | AX26: 3.504 | AY26: 49.056 | AZ26: 10.512 | BA26: 66.576 | BB26: 30.368 | BC26: 14.016 | BD26: 21.024 | BE26: 17.52 | BF26: 10.512
A27: молоко | G27: 0.015 | K27: 0.1 | Q27: 0.036 | R27: 0.046 | S27: 0.2 | Y27: 0.1 | AG27: 0.497 | AH27: 3.976 | AI27: 894.6 | AJ27: 1252.44 | AK27: 982.072 | AL27: 815.08 | AM27: 47.712 | AN27: 1081.472 | AO27: 43.736 | AP27: 91.448 | AQ27: 218.68 | AR27: 127.232 | AS27: 15.904 | AT27: 47.712 | AU27: 63.616 | AV27: 67.592 | AW27: 27.832 | AX27: 11.928 | AY27: 166.992 | AZ27: 35.784 | BA27: 226.632 | BB27: 103.376 | BC27: 47.712 | BD27: 71.568 | BE27: 59.64 | BF27: 35.784
A28: булочка | Z28: 1 | AG28: 1 | AH28: 8 | AI28: 1800 | AJ28: 2520 | AK28: 1976 | AL28: 1640 | AM28: 96 | AN28: 2176 | AO28: 88 | AP28: 184 | AQ28: 440 | AR28: 256 | AS28: 32 | AT28: 96 | AU28: 128 | AV28: 136 | AW28: 56 | AX28: 24 | AY28: 336 | AZ28: 72 | BA28: 456 | BB28: 208 | BC28: 96 | BD28: 144 | BE28: 120 | BF28: 72
A29: соль | B29: 0.002 | G29: 0.001 | H29: 0.002 | I29: 0.002 | M29: 0.001 | O29: 0.002 | P29: 0.002 | Q29: 0.002 | R29: 0.002 | T29: 0.001 | V29: 0.001 | W29: 0.002 | X29: 0.001 | Y29: 0.001 | AA29: 0.001 | AG29: 0.023 | AH29: 0.184 | AI29: 41.4 | AJ29: 57.96 | AK29: 45.448 | AL29: 37.72 | AM29: 2.208 | AN29: 50.048 | AO29: 2.024 | AP29: 4.232 | AQ29: 10.12 | AR29: 5.888 | AS29: 0.736 | AT29: 2.208 | AU29: 2.944 | AV29: 3.128 | AW29: 1.288 | AX29: 0.552 | AY29: 7.728 | AZ29: 1.656 | BA29: 10.488 | BB29: 4.784 | BC29: 2.208 | BD29: 3.312 | BE29: 2.76 | BF29: 1.656
A30: яблоки свежие | AC30: 0.6 | AG30: 0.6 | AH30: 4.8 | AI30: 1080 | AJ30: 1512 | AK30: 1185.6 | AL30: 984 | AM30: 57.6 | AN30: 1305.6 | AO30: 52.8 | AP30: 110.4 | AQ30: 264 | AR30: 153.6 | AS30: 19.2 | AT30: 57.6 | AU30: 76.8 | AV30: 81.6 | AW30: 33.6 | AX30: 14.4 | AY30: 201.6 | AZ30: 43.2 | BA30: 273.6 | BB30: 124.8 | BC30: 57.6 | BD30: 86.4 | BE30: 72 | BF30: 43.2
AG31: 0 | AH31: 0 | AI31: 0 | AJ31: 0 | AK31: 0 | AL31: 0 | AM31: 0 | AN31: 0 | AO31: 0 | AP31: 0 | AQ31: 0 | AR31: 0 | AS31: 0 | AT31: 0 | AU31: 0 | AV31: 0 | AW31: 0 | AX31: 0 | AY31: 0 | AZ31: 0 | BA31: 0 | BB31: 0 | BC31: 0 | BD31: 0 | BE31: 0 | BF31: 0
A32: хлеб дарницкий(кг) | D32: 0.25 | AG32: 0.25 | AH32: 2 | AI32: 450 | AJ32: 630 | AK32: 494 | AL32: 410 | AM32: 24 | AN32: 544 | AO32: 22 | AP32: 46 | AQ32: 110 | AR32: 64 | AS32: 8 | AT32: 24 | AU32: 32 | AV32: 34 | AW32: 14 | AX32: 6 | AY32: 84 | AZ32: 18 | BA32: 114 | BB32: 52 | BC32: 24 | BD32: 36 | BE32: 30 | BF32: 18
A33: томат паста | H33: 0.012 | M33: 0.012 | T33: 0.005 | AG33: 0.029 | AH33: 0.232 | AI33: 52.2 | AJ33: 73.08 | AK33: 57.304 | AL33: 47.56 | AM33: 2.784 | AN33: 63.104 | AO33: 2.552 | AP33: 5.336 | AQ33: 12.76 | AR33: 7.424 | AS33: 0.928 | AT33: 2.784 | AU33: 3.712 | AV33: 3.944 | AW33: 1.624 | AX33: 0.696 | AY33: 9.744 | AZ33: 2.088 | BA33: 13.224 | BB33: 6.032 | BC33: 2.784 | BD33: 4.176 | BE33: 3.48 | BF33: 2.088
A34: сок | AB34: 0.6 | AG34: 0.6 | AH34: 4.8 | AI34: 1080 | AJ34: 1512 | AK34: 1185.6 | AL34: 984 | AM34: 57.6 | AN34: 1305.6 | AO34: 52.8 | AP34: 110.4 | AQ34: 264 | AR34: 153.6 | AS34: 19.2 | AT34: 57.6 | AU34: 76.8 | AV34: 81.6 | AW34: 33.6 | AX34: 14.4 | AY34: 201.6 | AZ34: 43.2 | BA34: 273.6 | BB34: 124.8 | BC34: 57.6 | BD34: 86.4 | BE34: 72 | BF34: 43.2
A35: хлеб в/с(кг) | C35: 0.55 | AG35: 0.55 | AH35: 4.4 | AI35: 990 | AJ35: 1386 | AK35: 1086.8 | AL35: 902 | AM35: 52.8 | AN35: 1196.8 | AO35: 48.4 | AP35: 101.2 | AQ35: 242 | AR35: 140.8 | AS35: 17.6 | AT35: 52.8 | AU35: 70.4 | AV35: 74.8 | AW35: 30.8 | AX35: 13.2 | AY35: 184.8 | AZ35: 39.6 | BA35: 250.8 | BB35: 114.4 | BC35: 52.8 | BD35: 79.2 | BE35: 66 | BF35: 39.6
A36: чай | E36: 0.004 | J36: 0.01 | AG36: 0.014 | AH36: 0.112 | AI36: 25.2 | AJ36: 35.28 | AK36: 27.664 | AL36: 22.96 | AM36: 1.344 | AN36: 30.464 | AO36: 1.232 | AP36: 2.576 | AQ36: 6.16 | AR36: 3.584 | AS36: 0.448 | AT36: 1.344 | AU36: 1.792 | AV36: 1.904 | AW36: 0.784 | AX36: 0.336 | AY36: 4.704 | AZ36: 1.008 | BA36: 6.384 | BB36: 2.912 | BC36: 1.344 | BD36: 2.016 | BE36: 1.68 | BF36: 1.008
A37: апельсины | AD37: 0.45 | AG37: 0.45 | AH37: 3.6 | AI37: 810 | AJ37: 1134 | AK37: 889.2 | AL37: 738 | AM37: 43.2 | AN37: 979.2 | AO37: 39.6 | AP37: 82.8 | AQ37: 198 | AR37: 115.2 | AS37: 14.4 | AT37: 43.2 | AU37: 57.6 | AV37: 61.2 | AW37: 25.2 | AX37: 10.8 | AY37: 151.2 | AZ37: 32.4 | BA37: 205.2 | BB37: 93.6 | BC37: 43.2 | BD37: 64.8 | BE37: 54 | BF37: 32.4
A38: помидор | AE38: 0.07 | AG38: 0.07 | AH38: 0.56 | AI38: 126 | AJ38: 176.4 | AK38: 138.32 | AL38: 114.8 | AM38: 6.72 | AN38: 152.32 | AO38: 6.16 | AP38: 12.88 | AQ38: 30.8 | AR38: 17.92 | AS38: 2.24 | AT38: 6.72 | AU38: 8.96 | AV38: 9.52 | AW38: 3.92 | AX38: 1.68 | AY38: 23.52 | AZ38: 5.04 | BA38: 31.92 | BB38: 14.56 | BC38: 6.72 | BD38: 10.08 | BE38: 8.4 | BF38: 5.04
A39: огурец | AF39: 0.063 | AG39: =AF39 -> 0.063 | AH39: 0.504 | AI39: 113.4 | AJ39: 158.76 | AK39: 124.488 | AL39: 103.32 | AM39: 6.048 | AN39: 137.088 | AO39: 5.544 | AP39: 11.592 | AQ39: 27.72 | AR39: 16.128 | AS39: 2.016 | AT39: 6.048 | AU39: 8.064 | AV39: 8.568 | AW39: 3.528 | AX39: 1.512 | AY39: 21.168 | AZ39: 4.536 | BA39: 28.728 | BB39: 13.104 | BC39: 6.048 | BD39: 9.072 | BE39: 7.56 | BF39: 4.536

Sheet Лист1
A1: КАЛЬКУЛЯЦИЯ БЛЮД
A2: наименование | B2: котлеты рубленные из говядины | C2: каша гречневая рассыпчатая | D2: кофейный напиток | E2: сыр порционный | F2: рис отварной | G2: макароны отварные | H2: котлеты рубленные из птицы | I2: картофельное пюре | J2: какао с молоком | K2: пельмени отварные | L2: каша манная | M2: итого на 1 ребенка на 2 недели | N2: всего на 32 недель(год) | O2: дж 1 225 | P2: дж 2 315 | Q2: дж гимназия 247 | R2: сарман сош 205 | S2: каран 12 | T2: сарман гимназия 272 | U2: азалак 11 | V2: алекс 23 | W2: альмэт 55 | X2: большенуркей 32 | Y2: юлтимер 4 | Z2: карашай 12 | AA2: илексаз 16 | AB2: кавзияк 17 | AC2: кутемели 7 | AD2: лэке 3 | AE2: леш-тамак 42 | AF2: муртамак 9 | AG2: петровка 57 | AH2: ст.кашир 26 | AI2: сарайлы 12 | AJ2: сакловбаш 18 | AK2: ст.мензелябаш 15 | AL2: шарли 9
A3: количество раз за 2 недели | B3: 1 | C3: 2 | D3: 1 | E3: 1 | F3: 2 | G3: 2 | H3: 2 | I3: 2 | J3: 2 | K3: 1 | L3: 1
A4: масло сливочное | C4: 0.01 | F4: 0.01 | G4: 0.01 | H4: 0.006 | I4: 0.01 | K4: 0.005 | L4: 0.005 | M4: =SUM(B4:L4) -> 0.056 | N4: =M4*16 -> 0.896 | O4: =N4*225 -> 201.6 | P4: =N4*315 -> 282.24 | Q4: =N4*247 -> 221.312 | R4: =N4*205 -> 183.68 | S4: =N4*12 -> 10.752 | T4: =N4*272 -> 243.712 | U4: =N4*11 -> 9.856 | V4: =N4*23 -> 20.608 | W4: =N4*55 -> 49.28 | X4: =N4*32 -> 28.672 | Y4: =N4*4 -> 3.584 | Z4: =N4*12 -> 10.752 | AA4: =N4*16 -> 14.336 | AB4: =N4*17 -> 15.232 | AC4: =N4*7 -> 6.272 | AD4: =N4*3 -> 2.688 | AE4: =N4*42 -> 37.632 | AF4: =N4*9 -> 8.064 | AG4: =N4*57 -> 51.072 | AH4: =N4*26 -> 23.296 | AI4: =N4*12 -> 10.752 | AJ4: =N4*18 -> 16.128 | AK4: =N4*15 -> 13.44 | AL4: =N4*9 -> 8.064
A5: молоко | B5: 0.015 | D5: 0.1 | H5: 0.022 | I5: 0.046 | J5: 0.2 | L5: 0.1 | M5: =SUM(B5:L5) -> 0.483 | N5: =M5*16 -> 7.728 | O5: 1738.8 | P5: 2434.32 | Q5: 1908.816 | R5: 1584.24 | S5: 92.736 | T5: 2102.016 | U5: 85.008 | V5: 177.744 | W5: 425.04 | X5: 247.296 | Y5: 30.912 | Z5: 92.736 | AA5: 123.648 | AB5: 131.376 | AC5: 54.096 | AD5: 23.184 | AE5: 324.576 | AF5: 69.552 | AG5: 440.496 | AH5: 200.928 | AI5: 92.736 | AJ5: 139.104 | AK5: 115.92 | AL5: 69.552
A6: сыр порционный | E6: 0.0209 | M6: =SUM(B6:L6) -> 0.0209 | N6: 0.3344 | O6: 75.24 | P6: 105.336 | Q6: 82.5968 | R6: 68.552 | S6: 4.0128 | T6: 90.9568 | U6: 3.6784 | V6: 7.6912 | W6: 18.392 | X6: 10.7008 | Y6: 1.3376 | Z6: 4.0128 | AA6: 5.3504 | AB6: 5.6848 | AC6: 2.3408 | AD6: 1.0032 | AE6: 14.0448 | AF6: 3.0096 | AG6: 19.0608 | AH6: 8.6944 | AI6: 4.0128 | AJ6: 6.0192 | AK6: 5.016 | AL6: 3.0096
